{"text_format":"1","workbook":"xlsx","n_sheets":2,"sheets":["сводная","Лист1"],"not_rendered":{"charts":0,"images":1,"macros":1,"external_links":0,"defined_names":1,"comments":0,"pivot_tables":1},"unopened":[],"bounds":{"document_bytes":16777216,"sheet_cells":100000,"rows_first":2000,"rows_last":500,"rows_between":2000,"halvings":0,"cell_chars":16384,"cell_head_chars":4096},"cells_cut":0,"cells_raw":0,"read":"whole","date_system":"1900"}

{"sheet":"сводная","index":0,"n_rows":17,"n_cols":14,"rows_kept":17,"cut":false,"hidden":false,"merged":[]}
[null,null,null,null,"при изменении не забываем обновить"]
[]
["Количество по полю Наименование подразделения","Названия столбцов"]
["Названия строк","понедельник","вторник","среда","четверг","пятница","суббота","воскресенье","Общий итог",null,"чел","деж на человека в пр и вых"]
[null,50,50,50,48,48,1,null,247,{"$f":"GETPIVOTDATA(\"Наименование подразделения\",$A$3,\"Наименование подразделения\",\"\")","v":247},48,{"$f":"J5/K5","v":5.145833333333333}]
["Подразделение_1",null,null,null,1,null,6,15,22,{"$f":"GETPIVOTDATA(\"Наименование подразделения\",$A$3,\"Наименование подразделения\",\"Подразделение_1\")","v":22},9,{"$f":"J6/K6","v":2.4444444444444446}]
["Подразделение_2",2,null,1,2,1,19,9,34,{"$f":"GETPIVOTDATA(\"Наименование подразделения\",$A$3,\"Наименование подразделения\",\"Подразделение_2\")","v":34},14,{"$f":"J7/K7","v":2.4285714285714284}]
["Подразделение_3",null,1,null,null,1,7,11,20,{"$f":"GETPIVOTDATA(\"Наименование подразделения\",$A$3,\"Наименование подразделения\",\"Подразделение_3\")","v":20},8,{"$f":"J8/K8","v":2.5}]
["Подразделение_4",null,null,1,1,1,7,5,15,{"$f":"GETPIVOTDATA(\"Наименование подразделения\",$A$3,\"Наименование подразделения\",\"Подразделение_4\")","v":15},6,{"$f":"J9/K9","v":2.5}]
["Подразделение_5",null,null,null,null,null,6,9,15,{"$f":"GETPIVOTDATA(\"Наименование подразделения\",$A$3,\"Наименование подразделения\",\"Подразделение_5\")","v":15},6,2.5]
["Подразделение_6",null,1,null,null,null,3,3,7,{"$f":"GETPIVOTDATA(\"Наименование подразделения\",$A$3,\"Наименование подразделения\",\"Подразделение_6\")","v":7},3,2.3333333333333335]
["Подразделение_7",null,null,1,null,1,3,null,5,{"$f":"GETPIVOTDATA(\"Наименование подразделения\",$A$3,\"Наименование подразделения\",\"Подразделение_7\")","v":5},2,2.5]
["Общий итог",52,52,53,52,52,52,52,365]
[null,null,null,null,null,null,null,null,null,null,null,"по макросу","в теории"]
[null,null,null,null,null,null,null,null,null,null,null,{"$f":"AVERAGE(L6:L12)","v":2.4580498866213154},{"$f":"(365-247)/K5","v":2.4583333333333335},"в среднем по вх и празн"]
[null,null,null,null,null,null,null,null,null,null,null,{"$f":"AVERAGE(L5)","v":5.145833333333333},{"$f":"247/K5","v":5.145833333333333},"в среднем по простым дням"]
[null,null,null,null,null,null,null,null,null,null,null,{"$f":"L16+L15","v":7.603883219954648},{"$f":"M16+M15","v":7.6041666666666661},"в среднем на чел в год"]

{"sheet":"Лист1","index":1,"n_rows":366,"n_cols":9,"rows_kept":366,"cut":false,"hidden":false,"merged":[]}
[null,null,null,"Дата дежурства","Дни недели","Наименование подразделения",null,"Выходные и праздники"]
["Наименование ","Численность","Кол-во дежурств","2025-01-01","среда",{"$f":"IFERROR(VLOOKUP(D2,$H$2:$I$120,2,0),\"\")","v":"Подразделение_7"},null,"2025-01-01","Подразделение_7"]
["Подразделение_1",9,{"$f":"COUNTIF($I$2:$I$120,A3)","v":22},"2025-01-02","четверг",{"$f":"IFERROR(VLOOKUP(D3,$H$2:$I$120,2,0),\"\")","v":"Подразделение_4"},null,"2025-01-02","Подразделение_4"]
["Подразделение_2",14,{"$f":"COUNTIF($I$2:$I$120,A4)","v":35},"2025-01-03","пятница","Подразделение_3",null,"2025-01-03","Подразделение_3"]
["Подразделение_3",8,20,"2025-01-04","суббота","Подразделение_6",null,"2025-01-04","Подразделение_6"]
["Подразделение_4",6,15,"2025-01-05","воскресенье","Подразделение_1",null,"2025-01-05","Подразделение_1"]
["Подразделение_5",6,15,"2025-01-06","понедельник","Подразделение_2",null,"2025-01-06","Подразделение_2"]
["Подразделение_6",3,7,"2025-01-07","вторник","Подразделение_6",null,"2025-01-07","Подразделение_6"]
["Подразделение_7",2,5,"2025-01-08","среда","Подразделение_4",null,"2025-01-08","Подразделение_4"]
["ИТОГО",{"$f":"SUM(B3:B9)","v":48},null,"2025-01-09","четверг","",null,"2025-01-11","Подразделение_6"]
[null,null,null,"2025-01-10","пятница","",null,"2025-01-12","Подразделение_4"]
[null,null,null,"2025-01-11","суббота","Подразделение_6",null,"2025-01-18","Подразделение_2"]
[null,null,null,"2025-01-12","воскресенье","Подразделение_4",null,"2025-01-19","Подразделение_1"]
[null,null,null,"2025-01-13","понедельник","",null,"2025-01-25","Подразделение_1"]
[null,null,null,"2025-01-14","вторник","",null,"2025-01-26","Подразделение_2"]
[null,null,null,"2025-01-15","среда","",null,"2025-02-01","Подразделение_6"]
[null,null,null,"2025-01-16","четверг","",null,"2025-02-02","Подразделение_1"]
[null,null,null,"2025-01-17","пятница","",null,"2025-02-08","Подразделение_1"]
[null,null,null,"2025-01-18","суббота","Подразделение_2",null,"2025-02-09","Подразделение_3"]
[null,null,null,"2025-01-19","воскресенье","Подразделение_1",null,"2025-02-15","Подразделение_2"]
[null,null,null,"2025-01-20","понедельник","",null,"2025-02-16","Подразделение_1"]
[null,null,null,"2025-01-21","вторник","",null,"2025-02-22","Подразделение_2"]
[null,null,null,"2025-01-22","среда","",null,"2025-02-23","Подразделение_1"]
[null,null,null,"2025-01-23","четверг","",null,"2025-03-01","Подразделение_2"]
[null,null,null,"2025-01-24","пятница","",null,"2025-03-02","Подразделение_3"]
[null,null,null,"2025-01-25","суббота","Подразделение_1",null,"2025-03-08","Подразделение_4"]
[null,null,null,"2025-01-26","воскресенье","Подразделение_2",null,"2025-03-09","Подразделение_1"]
[null,null,null,"2025-01-27","понедельник","",null,"2025-03-15","Подразделение_4"]
[null,null,null,"2025-01-28","вторник","",null,"2025-03-16","Подразделение_2"]
[null,null,null,"2025-01-29","среда","",null,"2025-03-22","Подразделение_2"]
[null,null,null,"2025-01-30","четверг","",null,"2025-03-23","Подразделение_2"]
[null,null,null,"2025-01-31","пятница","",null,"2025-03-29","Подразделение_3"]
[null,null,null,"2025-02-01","суббота","Подразделение_6",null,"2025-03-30","Подразделение_1"]
[null,null,null,"2025-02-02","воскресенье","Подразделение_1",null,"2025-04-05","Подразделение_2"]
[null,null,null,"2025-02-03","понедельник","",null,"2025-04-06","Подразделение_4"]
[null,null,null,"2025-02-04","вторник","",null,"2025-04-12","Подразделение_5"]
[null,null,null,"2025-02-05","среда","",null,"2025-04-13","Подразделение_3"]
[null,null,null,"2025-02-06","четверг","",null,"2025-04-19","Подразделение_4"]
[null,null,null,"2025-02-07","пятница","",null,"2025-04-20","Подразделение_2"]
[null,null,null,"2025-02-08","суббота","Подразделение_1",null,"2025-04-26","Подразделение_1"]
[null,null,null,"2025-02-09","воскресенье","Подразделение_3",null,"2025-04-27","Подразделение_3"]
[null,null,null,"2025-02-10","понедельник","",null,"2025-05-01","Подразделение_2"]
[null,null,null,"2025-02-11","вторник","",null,"2025-05-02","Подразделение_7"]
[null,null,null,"2025-02-12","среда","",null,"2025-05-03","Подразделение_2"]
[null,null,null,"2025-02-13","четверг","",null,"2025-05-04","Подразделение_1"]
[null,null,null,"2025-02-14","пятница","",null,"2025-05-08","Подразделение_1"]
[null,null,null,"2025-02-15","суббота","Подразделение_2",null,"2025-05-09","Подразделение_2"]
[null,null,null,"2025-02-16","воскресенье","Подразделение_1",null,"2025-05-10","Подразделение_5"]
[null,null,null,"2025-02-17","понедельник","",null,"2025-05-11","Подразделение_5"]
[null,null,null,"2025-02-18","вторник","",null,"2025-05-17","Подразделение_2"]
[null,null,null,"2025-02-19","среда","",null,"2025-05-18","Подразделение_5"]
[null,null,null,"2025-02-20","четверг","",null,"2025-05-24","Подразделение_7"]
[null,null,null,"2025-02-21","пятница","",null,"2025-05-25","Подразделение_2"]
[null,null,null,"2025-02-22","суббота","Подразделение_2",null,"2025-05-31","Подразделение_2"]
[null,null,null,"2025-02-23","воскресенье","Подразделение_1",null,"2025-06-01","Подразделение_1"]
[null,null,null,"2025-02-24","понедельник","",null,"2025-06-07","Подразделение_5"]
[null,null,null,"2025-02-25","вторник","",null,"2025-06-08","Подразделение_3"]
[null,null,null,"2025-02-26","среда","",null,"2025-06-12","Подразделение_2"]
[null,null,null,"2025-02-27","четверг","",null,"2025-06-13","Подразделение_4"]
[null,null,null,"2025-02-28","пятница","",null,"2025-06-14","Подразделение_5"]
[null,null,null,"2025-03-01","суббота","Подразделение_2",null,"2025-06-15","Подразделение_2"]
[null,null,null,"2025-03-02","воскресенье","Подразделение_3",null,"2025-06-21","Подразделение_3"]
[null,null,null,"2025-03-03","понедельник","",null,"2025-06-22","Подразделение_4"]
[null,null,null,"2025-03-04","вторник","",null,"2025-06-28","Подразделение_1"]
[null,null,null,"2025-03-05","среда","",null,"2025-06-29","Подразделение_5"]
[null,null,null,"2025-03-06","четверг","",null,"2025-07-05","Подразделение_2"]
[null,null,null,"2025-03-07","пятница",{"$f":"IFERROR(VLOOKUP(D67,$H$2:$I$120,2,0),\"\")","v":""},null,"2025-07-06","Подразделение_6"]
[null,null,null,"2025-03-08","суббота","Подразделение_4",null,"2025-07-12","Подразделение_5"]
[null,null,null,"2025-03-09","воскресенье","Подразделение_1",null,"2025-07-13","Подразделение_3"]
[null,null,null,"2025-03-10","понедельник","",null,"2025-07-19","Подразделение_2"]
[null,null,null,"2025-03-11","вторник","",null,"2025-07-20","Подразделение_1"]
[null,null,null,"2025-03-12","среда","",null,"2025-07-26","Подразделение_2"]
[null,null,null,"2025-03-13","четверг","",null,"2025-07-27","Подразделение_5"]
[null,null,null,"2025-03-14","пятница","",null,"2025-08-02","Подразделение_2"]
[null,null,null,"2025-03-15","суббота","Подразделение_4",null,"2025-08-03","Подразделение_1"]
[null,null,null,"2025-03-16","воскресенье","Подразделение_2",null,"2025-08-09","Подразделение_2"]
[null,null,null,"2025-03-17","понедельник","",null,"2025-08-10","Подразделение_1"]
[null,null,null,"2025-03-18","вторник","",null,"2025-08-16","Подразделение_4"]
[null,null,null,"2025-03-19","среда","",null,"2025-08-17","Подразделение_3"]
[null,null,null,"2025-03-20","четверг","",null,"2025-08-23","Подразделение_3"]
[null,null,null,"2025-03-21","пятница","",null,"2025-08-24","Подразделение_5"]
[null,null,null,"2025-03-22","суббота","Подразделение_2",null,"2025-08-30","Подразделение_5"]
[null,null,null,"2025-03-23","воскресенье","Подразделение_2",null,"2025-08-31","Подразделение_2"]
[null,null,null,"2025-03-24","понедельник","",null,"2025-09-06","Подразделение_3"]
[null,null,null,"2025-03-25","вторник","",null,"2025-09-07","Подразделение_6"]
[null,null,null,"2025-03-26","среда","",null,"2025-09-13","Подразделение_3"]
[null,null,null,"2025-03-27","четверг","",null,"2025-09-14","Подразделение_4"]
[null,null,null,"2025-03-28","пятница","",null,"2025-09-20","Подразделение_4"]
[null,null,null,"2025-03-29","суббота","Подразделение_3",null,"2025-09-21","Подразделение_2"]
[null,null,null,"2025-03-30","воскресенье","Подразделение_1",null,"2025-09-27","Подразделение_4"]
[null,null,null,"2025-03-31","понедельник","",null,"2025-09-28","Подразделение_5"]
[null,null,null,"2025-04-01","вторник","",null,"2025-10-04","Подразделение_3"]
[null,null,null,"2025-04-02","среда","",null,"2025-10-05","Подразделение_1"]
[null,null,null,"2025-04-03","четверг","",null,"2025-10-11","Подразделение_2"]
[null,null,null,"2025-04-04","пятница","",null,"2025-10-12","Подразделение_5"]
[null,null,null,"2025-04-05","суббота","Подразделение_2",null,"2025-10-18","Подразделение_3"]
[null,null,null,"2025-04-06","воскресенье","Подразделение_4",null,"2025-10-19","Подразделение_5"]
[null,null,null,"2025-04-07","понедельник","",null,"2025-10-25","Подразделение_1"]
[null,null,null,"2025-04-08","вторник","",null,"2025-10-26","Подразделение_6"]
[null,null,null,"2025-04-09","среда","",null,"2025-11-02","Подразделение_1"]
[null,null,null,"2025-04-10","четверг","",null,"2025-11-03","Подразделение_2"]
[null,null,null,"2025-04-11","пятница","",null,"2025-11-04","Подразделение_3"]
[null,null,null,"2025-04-12","суббота","Подразделение_5",null,"2025-11-08","Подразделение_2"]
[null,null,null,"2025-04-13","воскресенье","Подразделение_3",null,"2025-11-09","Подразделение_3"]
[null,null,null,"2025-04-14","понедельник","",null,"2025-11-15","Подразделение_4"]
[null,null,null,"2025-04-15","вторник","",null,"2025-11-16","Подразделение_3"]
[null,null,null,"2025-04-16","среда","",null,"2025-11-22","Подразделение_7"]
[null,null,null,"2025-04-17","четверг","",null,"2025-11-23","Подразделение_1"]
[null,null,null,"2025-04-18","пятница","",null,"2025-11-29","Подразделение_2"]
[null,null,null,"2025-04-19","суббота","Подразделение_4",null,"2025-11-30","Подразделение_3"]
[null,null,null,"2025-04-20","воскресенье","Подразделение_2",null,"2025-12-06","Подразделение_2"]
[null,null,null,"2025-04-21","понедельник","",null,"2025-12-07","Подразделение_5"]
[null,null,null,"2025-04-22","вторник","",null,"2025-12-13","Подразделение_1"]
[null,null,null,"2025-04-23","среда","",null,"2025-12-14","Подразделение_2"]
[null,null,null,"2025-04-24","четверг","",null,"2025-12-20","Подразделение_7"]
[null,null,null,"2025-04-25","пятница","",null,"2025-12-21","Подразделение_3"]
[null,null,null,"2025-04-26","суббота","Подразделение_1",null,"2025-12-27","Подразделение_2"]
[null,null,null,"2025-04-27","воскресенье","Подразделение_3",null,"2025-12-28","Подразделение_4"]
[null,null,null,"2025-04-28","понедельник","",null,"2025-12-31","Подразделение_2"]
[null,null,null,"2025-04-29","вторник","",null,"2025-12-31","Подразделение_2"]
[null,null,null,"2025-04-30","среда",""]
[null,null,null,"2025-05-01","четверг","Подразделение_2"]
[null,null,null,"2025-05-02","пятница","Подразделение_7"]
[null,null,null,"2025-05-03","суббота","Подразделение_2"]
[null,null,null,"2025-05-04","воскресенье","Подразделение_1"]
[null,null,null,"2025-05-05","понедельник",""]
[null,null,null,"2025-05-06","вторник",""]
[null,null,null,"2025-05-07","среда",""]
[null,null,null,"2025-05-08","четверг","Подразделение_1"]
[null,null,null,"2025-05-09","пятница","Подразделение_2"]
[null,null,null,"2025-05-10","суббота",{"$f":"IFERROR(VLOOKUP(D131,$H$2:$I$120,2,0),\"\")","v":"Подразделение_5"}]
[null,null,null,"2025-05-11","воскресенье","Подразделение_5"]
[null,null,null,"2025-05-12","понедельник",""]
[null,null,null,"2025-05-13","вторник",""]
[null,null,null,"2025-05-14","среда",""]
[null,null,null,"2025-05-15","четверг",""]
[null,null,null,"2025-05-16","пятница",""]
[null,null,null,"2025-05-17","суббота","Подразделение_2"]
[null,null,null,"2025-05-18","воскресенье","Подразделение_5"]
[null,null,null,"2025-05-19","понедельник",""]
[null,null,null,"2025-05-20","вторник",""]
[null,null,null,"2025-05-21","среда",""]
[null,null,null,"2025-05-22","четверг",""]
[null,null,null,"2025-05-23","пятница",""]
[null,null,null,"2025-05-24","суббота","Подразделение_7"]
[null,null,null,"2025-05-25","воскресенье","Подразделение_2"]
[null,null,null,"2025-05-26","понедельник",""]
[null,null,null,"2025-05-27","вторник",""]
[null,null,null,"2025-05-28","среда",""]
[null,null,null,"2025-05-29","четверг",""]
[null,null,null,"2025-05-30","пятница",""]
[null,null,null,"2025-05-31","суббота","Подразделение_2"]
[null,null,null,"2025-06-01","воскресенье","Подразделение_1"]
[null,null,null,"2025-06-02","понедельник",""]
[null,null,null,"2025-06-03","вторник",""]
[null,null,null,"2025-06-04","среда",""]
[null,null,null,"2025-06-05","четверг",""]
[null,null,null,"2025-06-06","пятница",""]
[null,null,null,"2025-06-07","суббота","Подразделение_5"]
[null,null,null,"2025-06-08","воскресенье","Подразделение_3"]
[null,null,null,"2025-06-09","понедельник",""]
[null,null,null,"2025-06-10","вторник",""]
[null,null,null,"2025-06-11","среда",""]
[null,null,null,"2025-06-12","четверг","Подразделение_2"]
[null,null,null,"2025-06-13","пятница","Подразделение_4"]
[null,null,null,"2025-06-14","суббота","Подразделение_5"]
[null,null,null,"2025-06-15","воскресенье","Подразделение_2"]
[null,null,null,"2025-06-16","понедельник",""]
[null,null,null,"2025-06-17","вторник",""]
[null,null,null,"2025-06-18","среда",""]
[null,null,null,"2025-06-19","четверг",""]
[null,null,null,"2025-06-20","пятница",""]
[null,null,null,"2025-06-21","суббота","Подразделение_3"]
[null,null,null,"2025-06-22","воскресенье","Подразделение_4"]
[null,null,null,"2025-06-23","понедельник",""]
[null,null,null,"2025-06-24","вторник",""]
[null,null,null,"2025-06-25","среда",""]
[null,null,null,"2025-06-26","четверг",""]
[null,null,null,"2025-06-27","пятница",""]
[null,null,null,"2025-06-28","суббота","Подразделение_1"]
[null,null,null,"2025-06-29","воскресенье","Подразделение_5"]
[null,null,null,"2025-06-30","понедельник",""]
[null,null,null,"2025-07-01","вторник",""]
[null,null,null,"2025-07-02","среда",""]
[null,null,null,"2025-07-03","четверг",""]
[null,null,null,"2025-07-04","пятница",""]
[null,null,null,"2025-07-05","суббота","Подразделение_2"]
[null,null,null,"2025-07-06","воскресенье","Подразделение_6"]
[null,null,null,"2025-07-07","понедельник",""]
[null,null,null,"2025-07-08","вторник",""]
[null,null,null,"2025-07-09","среда",""]
[null,null,null,"2025-07-10","четверг",""]
[null,null,null,"2025-07-11","пятница",""]
[null,null,null,"2025-07-12","суббота","Подразделение_5"]
[null,null,null,"2025-07-13","воскресенье",{"$f":"IFERROR(VLOOKUP(D195,$H$2:$I$120,2,0),\"\")","v":"Подразделение_3"}]
[null,null,null,"2025-07-14","понедельник",""]
[null,null,null,"2025-07-15","вторник",""]
[null,null,null,"2025-07-16","среда",""]
[null,null,null,"2025-07-17","четверг",""]
[null,null,null,"2025-07-18","пятница",""]
[null,null,null,"2025-07-19","суббота","Подразделение_2"]
[null,null,null,"2025-07-20","воскресенье","Подразделение_1"]
[null,null,null,"2025-07-21","понедельник",""]
[null,null,null,"2025-07-22","вторник",""]
[null,null,null,"2025-07-23","среда",""]
[null,null,null,"2025-07-24","четверг",""]
[null,null,null,"2025-07-25","пятница",""]
[null,null,null,"2025-07-26","суббота","Подразделение_2"]
[null,null,null,"2025-07-27","воскресенье","Подразделение_5"]
[null,null,null,"2025-07-28","понедельник",""]
[null,null,null,"2025-07-29","вторник",""]
[null,null,null,"2025-07-30","среда",""]
[null,null,null,"2025-07-31","четверг",""]
[null,null,null,"2025-08-01","пятница",""]
[null,null,null,"2025-08-02","суббота","Подразделение_2"]
[null,null,null,"2025-08-03","воскресенье","Подразделение_1"]
[null,null,null,"2025-08-04","понедельник",""]
[null,null,null,"2025-08-05","вторник",""]
[null,null,null,"2025-08-06","среда",""]
[null,null,null,"2025-08-07","четверг",""]
[null,null,null,"2025-08-08","пятница",""]
[null,null,null,"2025-08-09","суббота","Подразделение_2"]
[null,null,null,"2025-08-10","воскресенье","Подразделение_1"]
[null,null,null,"2025-08-11","понедельник",""]
[null,null,null,"2025-08-12","вторник",""]
[null,null,null,"2025-08-13","среда",""]
[null,null,null,"2025-08-14","четверг",""]
[null,null,null,"2025-08-15","пятница",""]
[null,null,null,"2025-08-16","суббота","Подразделение_4"]
[null,null,null,"2025-08-17","воскресенье","Подразделение_3"]
[null,null,null,"2025-08-18","понедельник",""]
[null,null,null,"2025-08-19","вторник",""]
[null,null,null,"2025-08-20","среда",""]
[null,null,null,"2025-08-21","четверг",""]
[null,null,null,"2025-08-22","пятница",""]
[null,null,null,"2025-08-23","суббота","Подразделение_3"]
[null,null,null,"2025-08-24","воскресенье","Подразделение_5"]
[null,null,null,"2025-08-25","понедельник",""]
[null,null,null,"2025-08-26","вторник",""]
[null,null,null,"2025-08-27","среда",""]
[null,null,null,"2025-08-28","четверг",""]
[null,null,null,"2025-08-29","пятница",""]
[null,null,null,"2025-08-30","суббота","Подразделение_5"]
[null,null,null,"2025-08-31","воскресенье","Подразделение_2"]
[null,null,null,"2025-09-01","понедельник",""]
[null,null,null,"2025-09-02","вторник",""]
[null,null,null,"2025-09-03","среда",""]
[null,null,null,"2025-09-04","четверг",""]
[null,null,null,"2025-09-05","пятница",""]
[null,null,null,"2025-09-06","суббота","Подразделение_3"]
[null,null,null,"2025-09-07","воскресенье","Подразделение_6"]
[null,null,null,"2025-09-08","понедельник",""]
[null,null,null,"2025-09-09","вторник",""]
[null,null,null,"2025-09-10","среда",""]
[null,null,null,"2025-09-11","четверг",""]
[null,null,null,"2025-09-12","пятница",""]
[null,null,null,"2025-09-13","суббота","Подразделение_3"]
[null,null,null,"2025-09-14","воскресенье","Подразделение_4"]
[null,null,null,"2025-09-15","понедельник",{"$f":"IFERROR(VLOOKUP(D259,$H$2:$I$120,2,0),\"\")","v":""}]
[null,null,null,"2025-09-16","вторник",""]
[null,null,null,"2025-09-17","среда",""]
[null,null,null,"2025-09-18","четверг",""]
[null,null,null,"2025-09-19","пятница",""]
[null,null,null,"2025-09-20","суббота","Подразделение_4"]
[null,null,null,"2025-09-21","воскресенье","Подразделение_2"]
[null,null,null,"2025-09-22","понедельник",""]
[null,null,null,"2025-09-23","вторник",""]
[null,null,null,"2025-09-24","среда",""]
[null,null,null,"2025-09-25","четверг",""]
[null,null,null,"2025-09-26","пятница",""]
[null,null,null,"2025-09-27","суббота","Подразделение_4"]
[null,null,null,"2025-09-28","воскресенье","Подразделение_5"]
[null,null,null,"2025-09-29","понедельник",""]
[null,null,null,"2025-09-30","вторник",""]
[null,null,null,"2025-10-01","среда",""]
[null,null,null,"2025-10-02","четверг",""]
[null,null,null,"2025-10-03","пятница",""]
[null,null,null,"2025-10-04","суббота","Подразделение_3"]
[null,null,null,"2025-10-05","воскресенье","Подразделение_1"]
[null,null,null,"2025-10-06","понедельник",""]
[null,null,null,"2025-10-07","вторник",""]
[null,null,null,"2025-10-08","среда",""]
[null,null,null,"2025-10-09","четверг",""]
[null,null,null,"2025-10-10","пятница",""]
[null,null,null,"2025-10-11","суббота","Подразделение_2"]
[null,null,null,"2025-10-12","воскресенье","Подразделение_5"]
[null,null,null,"2025-10-13","понедельник",""]
[null,null,null,"2025-10-14","вторник",""]
[null,null,null,"2025-10-15","среда",""]
[null,null,null,"2025-10-16","четверг",""]
[null,null,null,"2025-10-17","пятница",""]
[null,null,null,"2025-10-18","суббота","Подразделение_3"]
[null,null,null,"2025-10-19","воскресенье","Подразделение_5"]
[null,null,null,"2025-10-20","понедельник",""]
[null,null,null,"2025-10-21","вторник",""]
[null,null,null,"2025-10-22","среда",""]
[null,null,null,"2025-10-23","четверг",""]
[null,null,null,"2025-10-24","пятница",""]
[null,null,null,"2025-10-25","суббота","Подразделение_1"]
[null,null,null,"2025-10-26","воскресенье","Подразделение_6"]
[null,null,null,"2025-10-27","понедельник",""]
[null,null,null,"2025-10-28","вторник",""]
[null,null,null,"2025-10-29","среда",""]
[null,null,null,"2025-10-30","четверг",""]
[null,null,null,"2025-10-31","пятница",""]
[null,null,null,"2025-11-01","суббота",""]
[null,null,null,"2025-11-02","воскресенье","Подразделение_1"]
[null,null,null,"2025-11-03","понедельник","Подразделение_2"]
[null,null,null,"2025-11-04","вторник","Подразделение_3"]
[null,null,null,"2025-11-05","среда",""]
[null,null,null,"2025-11-06","четверг",""]
[null,null,null,"2025-11-07","пятница",""]
[null,null,null,"2025-11-08","суббота","Подразделение_2"]
[null,null,null,"2025-11-09","воскресенье","Подразделение_3"]
[null,null,null,"2025-11-10","понедельник",""]
[null,null,null,"2025-11-11","вторник",""]
[null,null,null,"2025-11-12","среда",""]
[null,null,null,"2025-11-13","четверг",""]
[null,null,null,"2025-11-14","пятница",""]
[null,null,null,"2025-11-15","суббота","Подразделение_4"]
[null,null,null,"2025-11-16","воскресенье","Подразделение_3"]
[null,null,null,"2025-11-17","понедельник",""]
[null,null,null,"2025-11-18","вторник",{"$f":"IFERROR(VLOOKUP(D323,$H$2:$I$120,2,0),\"\")","v":""}]
[null,null,null,"2025-11-19","среда",""]
[null,null,null,"2025-11-20","четверг",""]
[null,null,null,"2025-11-21","пятница",""]
[null,null,null,"2025-11-22","суббота","Подразделение_7"]
[null,null,null,"2025-11-23","воскресенье","Подразделение_1"]
[null,null,null,"2025-11-24","понедельник",""]
[null,null,null,"2025-11-25","вторник",""]
[null,null,null,"2025-11-26","среда",""]
[null,null,null,"2025-11-27","четверг",""]
[null,null,null,"2025-11-28","пятница",""]
[null,null,null,"2025-11-29","суббота","Подразделение_2"]
[null,null,null,"2025-11-30","воскресенье","Подразделение_3"]
[null,null,null,"2025-12-01","понедельник",""]
[null,null,null,"2025-12-02","вторник",""]
[null,null,null,"2025-12-03","среда",""]
[null,null,null,"2025-12-04","четверг",""]
[null,null,null,"2025-12-05","пятница",""]
[null,null,null,"2025-12-06","суббота","Подразделение_2"]
[null,null,null,"2025-12-07","воскресенье","Подразделение_5"]
[null,null,null,"2025-12-08","понедельник",""]
[null,null,null,"2025-12-09","вторник",""]
[null,null,null,"2025-12-10","среда",""]
[null,null,null,"2025-12-11","четверг",""]
[null,null,null,"2025-12-12","пятница",""]
[null,null,null,"2025-12-13","суббота","Подразделение_1"]
[null,null,null,"2025-12-14","воскресенье","Подразделение_2"]
[null,null,null,"2025-12-15","понедельник",""]
[null,null,null,"2025-12-16","вторник",""]
[null,null,null,"2025-12-17","среда",""]
[null,null,null,"2025-12-18","четверг",""]
[null,null,null,"2025-12-19","пятница",""]
[null,null,null,"2025-12-20","суббота","Подразделение_7"]
[null,null,null,"2025-12-21","воскресенье","Подразделение_3"]
[null,null,null,"2025-12-22","понедельник",""]
[null,null,null,"2025-12-23","вторник",""]
[null,null,null,"2025-12-24","среда",""]
[null,null,null,"2025-12-25","четверг",""]
[null,null,null,"2025-12-26","пятница",""]
[null,null,null,"2025-12-27","суббота","Подразделение_2"]
[null,null,null,"2025-12-28","воскресенье","Подразделение_4"]
[null,null,null,"2025-12-29","понедельник",""]
[null,null,null,"2025-12-30","вторник",""]
[null,null,null,"2025-12-31","среда","Подразделение_2"]